bitfinex/quotes_ETHUSD_20250508
["timestamp","ask_amount","ask_price","bid_price","bid_amount"]
[1746748468877,4.55438084,2195.7,2195.3,4.55509972]
[1746748469978,4.55456606,2195.6,2195.2,10.00929273]
[1746748470475,4.55443042,2195.7,2195.2,10.00929273]
[1746748470845,4.55443042,2195.7,2195.2,10.00923954]
[1746748471054,4.55443042,2195.7,2195.3,2.02085901]
[1746748471281,4.55443042,2195.7,2195.3,6.57602139]
[1746748471682,4.55443042,2195.7,2195.3,2.02085901]
[1746748472388,4.55460055,2195.6,2195.3,2.02085901]
[1746748472595,4.55460055,2195.6,2195.2,8.95299909]
[1746748472596,4.55375552,2196.0,2195.2,8.95317324]
[1746748472887,4.55464449,2195.6,2195.2,8.95317324]
[1746748474396,4.55464449,2195.6,2195.2,4.39779321]
[1746748474998,3.0,2196.1,2195.3,0.7775]
[1746748475169,4.55151964,2197.1,2195.3,0.7775]
[1746748475170,8.56431244,2198.6,2198.5,4.54855583]
[1746748475503,6.3789337,2198.6,2198.5,3.70746868]
[1746748475797,6.27637715,2198.6,2198.5,18.63801772]
[1746748475957,6.27637715,2198.6,2198.5,22.42261772]
[1746748476163,0.8219,2199.9,2198.6,10.93983283]
[1746748476164,9.48239249,2199.3,2198.6,10.93983283]
[1746748476386,9.48239249,2199.3,2199.2,8.30210803]
[1746748476694,10.35546855,2199.7,2199.3,12.482392]
[1746748476895,9.1374581,2199.7,2199.6,11.92497435]
[1746748477097,8.65451274,2199.7,2199.6,29.94659121]
[1746748477284,8.65451274,2199.7,2199.6,7.37869321]
[1746748477488,9.51996401,2199.7,2199.6,11.21569321]
[1746748477667,9.51996401,2199.7,2199.6,4.37869321]
[1746748477862,9.51996401,2199.7,2199.5,3.355]
[1746748478581,9.51996401,2199.7,2199.5,7.9469248]
[1746748478901,7.54503297,2200.3,2199.5,3.355]
[1746748479105,4.54503297,2200.3,2199.5,3.355]
[1746748479689,0.7852,2200.5,2199.5,3.40045542]
[1746748480007,0.4372451,2200.4,2199.5,7.90134151]
[1746748480186,0.4372451,2200.4,2199.6,4.54623267]
[1746748480611,4.98205782,2200.4,2199.7,6.823]
[1746748480900,4.54521865,2200.2,2199.4,16.401]
[1746748481088,1.26774639,2200.1,2199.6,3.352]
[1746748481402,1.26774639,2200.1,2199.4,6.819]
[1746748481805,1.26774639,2200.1,2199.5,4.54647891]
[1746748482310,4.98196512,2200.4,2199.9,4.54565185]
[1746748482311,0.4372451,2200.4,2199.9,4.54565185]
[1746748482511,0.7852,2200.5,2200.0,3.352]
[1746748482677,0.7852,2200.5,2200.1,3.352]
[1746748482871,3.58725103,2200.9,2200.2,0.04544798]
[1746748482872,0.7551,2200.9,2200.2,0.04544798]
[1746748483078,5.2988049,2200.9,2200.2,4.54502182]
[1746748483274,0.7551,2200.9,2200.2,0.0454424]
[1746748483488,0.7551,2200.9,2200.3,4.54483479]
[1746748483692,0.7551,2200.9,2200.4,4.54446413]
[1746748483889,3.58725103,2201.1,2200.1,3.352]
[1746748483890,4.33765103,2201.1,2200.1,3.352]
[1746748484092,0.4337651,2201.0,2200.2,7.54487407]
[1746748484290,0.4337651,2201.0,2200.4,4.54459959]
[1746748484506,6.70473408,2201.1,2200.4,4.54459959]
[1746748484806,3.0,2201.4,2200.7,4.54385251]
[1746748484807,4.5425749,2201.4,2200.7,4.54385251]
[1746748485013,4.54264207,2201.4,2200.7,7.89383815]
[1746748485213,4.54312811,2201.2,2200.7,6.82]
[1746748485576,0.52930421,2201.3,2200.7,11.36394605]
[1746748485913,0.52930421,2201.3,2200.8,4.54367749]
[1746748486111,0.52930421,2201.3,2200.9,4.54355925]
[1746748486302,0.52930421,2201.3,2200.8,4.54369981]
[1746748486502,0.5071883,2201.2,2200.7,4.54393029]
[1746748486697,0.5071883,2201.2,2200.8,3.35]
[1746748486911,0.5071883,2201.2,2200.5,0.7811]
[1746748487219,4.54313355,2201.2,2200.6,4.54418181]
[1746748487417,4.54315008,2201.2,2200.6,4.54418181]
[1746748487715,0.90859203,2201.1,2200.7,3.349]
[1746748488283,4.54307752,2201.2,2200.7,3.349]
[1746748488504,4.54256382,2201.4,2200.7,3.349]
[1746748488677,5.29283671,2201.5,2200.8,4.54363653]
[1746748488878,5.29276995,2201.5,2200.8,4.54380225]
[1746748489083,5.29276995,2201.5,2200.8,3.0]
[1746748489084,0.7504,2201.5,2200.8,3.0]
[1746748489318,4.54275383,2201.4,2200.9,6.804]
[1746748489613,0.98355325,2201.3,2200.9,11.34757643]
[1746748489787,0.98355325,2201.3,2200.4,3.34889272]
[1746748490119,0.98355325,2201.3,2200.9,4.54358719]
[1746748490308,0.98355325,2201.3,2200.6,3.0]
[1746748490309,0.98355325,2201.3,2200.6,7.54416698]
[1746748490489,4.54247063,2201.5,2200.9,4.5435958]
[1746748490682,5.32128841,2201.8,2201.1,4.5431332]
[1746748490901,4.32128841,2201.8,2201.2,6.797]
[1746748491190,4.54183478,2201.8,2201.2,11.3398729]
[1746748491391,4.99614479,2201.7,2201.3,0.04542516]
[1746748491592,4.54247616,2201.5,2200.7,0.8303]
[1746748491799,0.45418348,2201.7,2200.9,3.0]
[1746748492009,4.54132606,2202.0,2200.9,3.0]
[1746748492192,4.54235703,2201.6,2201.0,4.54324504]
[1746748492501,4.54254506,2201.5,2200.9,3.0]
[1746748492701,4.54173881,2201.8,2201.1,3.449]
[1746748492901,4.54225577,2201.6,2201.1,7.99216992]
[1746748493424,4.54235998,2201.5,2201.1,3.449]
[1746748493627,3.58725103,2202.0,2201.1,3.449]
[1746748493828,3.58725103,2202.0,2201.0,3.348]
[1746748493829,0.755,2201.8,2201.0,3.348]
[1746748494031,4.54293212,2201.3,2200.7,0.8303]
[1746748494329,0.45429321,2201.2,2201.1,6.788]
[1746748494737,4.99726976,2201.2,2200.7,8.37412013]
[1746748494894,4.99726976,2201.2,2201.0,6.787]
[1746748495099,4.99726976,2201.2,2201.1,6.786]
[1746748495904,4.5435021,2201.0,2200.6,3.0]
[1746748496105,0.88475809,2201.0,2200.7,6.782]
[1746748496413,5.42825125,2201.0,2200.8,6.779]
[1746748496944,0.45429321,2201.2,2200.8,6.779]
[1746748497124,4.54333969,2201.1,2200.8,6.779]
[1746748497527,0.55,2201.6,2200.8,6.779]
[1746748497746,4.54297638,2201.3,2200.8,6.779]
[1746748497899,3.58725103,2201.7,2200.8,6.779]
[1746748497900,4.54327656,2201.1,2200.8,6.779]
[1746748498319,4.54308834,2201.2,2200.8,6.779]
[1746748498537,0.45430362,2201.1,2200.8,6.779]
[1746748498834,4.99748674,2201.1,2200.8,6.779]
[1746748499034,0.45430362,2201.1,2200.8,6.779]
[1746748499336,4.99757365,2201.1,2200.8,6.779]
[1746748500035,0.45430362,2201.1,2200.8,6.779]
[1746748500335,4.54163224,2201.9,2201.4,4.5424572]
[1746748500537,5.33780872,2202.6,2202.1,4.54105774]
[1746748500743,0.769,2203.2,2202.3,0.767]
[1746748500937,4.53999907,2202.7,2202.3,0.767]
[1746748501454,4.53979798,2202.8,2202.3,5.30766702]
[1746748501758,4.53979798,2202.8,2201.7,0.7751]
[1746748501759,0.7589,2202.7,2201.7,0.7751]
[1746748501927,4.54008898,2202.6,2201.7,0.7751]
[1746748502261,4.54143597,2202.0,2201.8,6.778]
[1746748502752,4.54127522,2202.1,2201.3,0.8251]
[1746748502753,4.54195551,2201.7,2201.3,0.8251]
[1746748502930,4.54140397,2202.0,2201.5,3.43]
[1746748503127,4.54140397,2202.0,2201.6,0.04541384]
[1746748503425,4.5422676,2201.6,2201.5,3.432]
[1746748503815,4.99574847,2201.9,2201.3,3.43]
[1746748503816,4.54256382,2201.4,2201.3,3.43]
[1746748504050,4.54254794,2201.5,2201.3,3.43]
[1746748504254,4.54210841,2201.7,2201.3,3.43]
[1746748504550,0.4541404,2201.9,2201.4,0.04541953]
[1746748504928,4.54215116,2201.6,2201.5,0.41122961]
[1746748506440,4.54208876,2201.7,2201.5,0.41122961]
[1746748506646,4.54215116,2201.6,2201.5,0.41122961]
[1746748506954,4.54215116,2201.6,2201.4,3.56599923]
[1746748507251,4.54194803,2201.7,2201.4,3.56599923]
[1746748507458,4.54181657,2201.8,2201.4,3.56599923]
[1746748507459,0.4541404,2201.9,2201.5,0.14199923]
[1746748507750,0.8009,2202.9,2202.1,3.0]
[1746748507915,4.54001462,2202.7,2202.3,0.8146]
[1746748508115,4.53971716,2202.8,2202.4,0.04539778]
[1746748508315,4.53971716,2202.8,2202.5,0.14199923]
[1746748508560,4.53971716,2202.8,2202.6,0.14199923]
[1746748508764,0.2888239,2204.7,2202.6,0.14199923]
[1746748508963,4.53798345,2203.7,2203.1,3.0]
[1746748509141,0.45379834,2203.7,2203.3,0.8049]
[1746748509328,0.45379834,2203.7,2203.3,3.8049]
[1746748509532,4.53787559,2203.7,2203.3,3.94689923]
[1746748509955,4.5377472,2203.8,2203.4,0.14199923]
[1746748510170,4.53679339,2204.2,2203.5,0.41261279]
[1746748510334,4.53802868,2203.6,2203.5,0.41261279]
[1746748511357,4.53861841,2203.4,2203.2,3.454]
[1746748511666,1.22887934,2204.1,2203.2,3.454]
[1746748511832,4.53699922,2204.1,2203.2,3.454]
[1746748512032,3.0,2204.3,2203.2,7.992693]
[1746748512287,4.53770217,2203.8,2203.3,7.53864624]
[1746748512763,4.53658757,2204.3,2203.5,0.7503]
[1746748512968,5.45296714,2205.9,2204.6,4.53597024]
[1746748513128,4.53282009,2206.2,2204.6,22.18927024]
[1746748513329,3.58725103,2205.8,2204.6,24.2723]
[1746748513530,0.8196,2205.3,2204.2,0.7503]
[1746748513766,0.8196,2205.3,2204.3,7.25034175]
[1746748513926,0.8196,2206.6,2205.0,0.7503]
[1746748514125,4.53494172,2205.1,2205.0,0.7503]
[1746748514362,4.53391852,2205.6,2205.2,3.0]
[1746748514567,4.53453044,2205.3,2205.2,3.715]
[1746748514737,0.45345304,2205.3,2204.7,0.7964]
[1746748514927,5.34100188,2206.1,2204.8,7.34334418]
[1746748514928,4.53388069,2205.7,2204.8,7.34334418]
[1746748515133,4.53388069,2205.7,2205.1,4.53493942]
[1746748515366,4.53309156,2206.0,2205.2,0.04533599]
[1746748515553,4.53427699,2205.5,2205.1,3.0]
[1746748515864,0.09374538,2205.4,2205.1,3.0]
[1746748516073,4.53463954,2205.3,2205.1,2.995]
[1746748516302,4.62819706,2205.4,2205.2,3.719]
[1746748516438,4.53445168,2205.4,2205.2,3.719]
[1746748516644,0.53411916,2205.9,2205.3,0.8007]
[1746748516879,4.53336706,2205.9,2205.4,3.583]
[1746748517085,0.7731,2206.5,2205.5,4.57933869]
[1746748517381,0.7731,2207.6,2206.1,4.13725103]
[1746748517545,4.53179566,2206.7,2206.2,7.447]
[1746748517742,4.53001132,2207.5,2206.3,0.04531475]
[1746748517940,0.7731,2207.6,2206.3,7.45]
[1746748517941,4.5310376,2207.0,2206.3,7.45]
[1746748518141,4.53042178,2207.3,2206.4,3.0]
[1746748518355,4.53133704,2206.9,2206.4,3.0]
[1746748518568,0.53031113,2207.4,2206.5,0.04531002]
[1746748518880,4.52878039,2208.1,2206.9,0.8329]
[1746748519041,4.530288,2207.4,2207.0,7.51930137]
[1746748519382,4.53247518,2206.3,2206.2,0.8329]
[1746748519677,4.53288608,2206.1,2206.0,3.777]
[1746748519883,4.53288608,2206.1,2205.4,0.34090909]
[1746748519884,4.53347383,2205.9,2205.5,3.779]
[1746748520178,0.802,2206.6,2205.6,3.82733172]
[1746748520475,4.53323329,2206.0,2205.4,0.7869]
[1746748520653,4.53247518,2206.3,2205.7,3.781]
[1746748520853,4.53350258,2205.8,2205.7,3.781]
[1746748521577,4.53391367,2205.6,2205.5,3.00264514]
[1746748521779,0.53336622,2206.5,2205.5,3.00264514]
[1746748521963,4.53180333,2206.7,2205.7,4.53370811]
[1746748522163,4.53042178,2207.3,2205.8,4.57875413]
[1746748522370,4.53152131,2206.8,2206.2,4.53265779]
[1746748522556,0.10046555,2206.7,2206.3,8.30141416]
[1746748522757,4.53166596,2206.7,2206.3,8.30141416]
[1746748523065,0.10150496,2206.6,2206.3,8.30141416]
[1746748523260,0.10150496,2206.6,2206.4,4.53216398]
[1746748523465,4.5298284,2207.6,2206.3,8.30141416]
[1746748523466,3.718,2208.0,2206.8,4.53130678]
[1746748523681,4.5310376,2207.0,2206.9,3.784]
[1746748523862,4.52693526,2209.0,2207.0,9.06194204]
[1746748524064,5.45190739,2208.3,2206.9,0.8015]
[1746748524290,3.86,2208.2,2206.4,0.8015]
[1746748524497,4.53144825,2206.8,2206.7,3.867]
[1746748524883,4.53002125,2207.5,2205.9,0.8161]
[1746748524884,4.53239316,2206.4,2205.9,0.8161]
[1746748525194,4.53309156,2206.0,2205.9,0.8161]
[1746748525493,0.1021052,2206.0,2205.7,3.875]
[1746748525858,0.1021052,2206.0,2205.9,0.8161]
[1746748526058,0.1021052,2206.0,2205.9,5.34939706]
[1746748526258,4.53228657,2206.4,2205.9,5.34939706]
[1746748526479,0.1021052,2206.0,2205.9,0.8161]
[1746748526960,4.53265573,2206.3,2205.9,0.8161]
[1746748527162,0.10241839,2206.2,2205.9,0.8161]
[1746748527362,4.531022,2207.1,2206.0,4.57821525]
[1746748527563,4.53248841,2206.3,2205.9,0.8161]
[1746748527760,4.53233298,2206.4,2205.9,0.8161]
[1746748528096,4.6351211,2206.3,2205.9,0.8161]
[1746748528399,0.09387048,2206.2,2205.9,5.34937472]
[1746748528570,4.53213668,2206.5,2205.9,5.34937472]
[1746748528903,4.53125301,2206.9,2206.3,4.53239925]
[1746748529104,0.90623148,2206.9,2206.4,3.93031305]
[1746748529274,0.7914,2207.3,2206.4,3.93031305]
[1746748529275,4.53040343,2207.4,2206.6,0.8005]
[1746748529472,0.774,2207.7,2206.6,0.8005]
[1746748529473,4.53144825,2206.8,2206.7,0.04530399]
[1746748529683,7.53001132,2207.5,2206.6,0.8005]
[1746748529997,4.53102916,2207.1,2206.6,0.04531266]
[1746748530187,4.53123325,2207.0,2206.6,0.04531266]
[1746748530862,4.98404016,2207.1,2206.6,0.04531266]
[1746748531059,4.98404016,2207.1,2206.6,4.53170778]
[1746748531399,0.8323,2208.1,2207.1,5.03077179]
[1746748531696,4.53062703,2207.2,2207.1,0.04673179]
[1746748531902,4.53046281,2207.3,2207.1,0.04673179]
[1746748532089,4.53062703,2207.2,2207.1,0.04673179]
[1746748532260,5.51236601,2207.2,2207.1,0.04673179]
[1746748532464,6.06236601,2207.2,2207.1,0.04673179]
[1746748532664,13.67766601,2207.2,2207.1,0.04673179]
[1746748532898,13.12766601,2207.2,2207.1,0.04673179]
[1746748533307,0.98173898,2207.2,2207.1,0.04673179]
[1746748533602,4.53062703,2207.2,2207.1,0.04673179]
[1746748534199,4.52979055,2207.7,2207.1,0.04673179]
[1746748534400,4.53018296,2207.5,2207.1,0.04673179]
[1746748534579,4.53013038,2207.5,2207.1,0.09203256]
[1746748534777,4.52919063,2207.9,2207.1,0.04673179]
[1746748534778,0.90599887,2207.4,2207.1,0.04673179]
[1746748534986,4.52931149,2207.9,2207.4,4.53019025]
[1746748535304,4.52993124,2207.6,2207.2,0.7612]
[1746748535510,4.52983371,2207.6,2207.3,0.04529753]
[1746748535715,4.53062703,2207.2,2207.1,0.04673179]
[1746748536013,0.45298337,2207.6,2207.1,0.04673179]
[1746748536164,4.53062703,2207.2,2207.1,0.04673179]
[1746748537102,4.5300694,2207.5,2206.9,0.7508]
[1746748537265,4.53012632,2207.5,2207.0,4.57633439]
[1746748537465,4.53022036,2207.4,2206.9,5.28197733]
[1746748537777,4.53069729,2207.2,2206.9,0.7508]
[1746748538182,4.53053484,2207.3,2206.9,0.7508]
[1746748538701,4.52960094,2207.7,2206.9,0.7508]
[1746748538910,4.53053623,2207.3,2206.9,0.7508]
[1746748539403,4.53062747,2207.2,2206.9,0.7508]
[1746748539709,4.53073032,2207.2,2206.9,0.7508]
[1746748540006,4.98280594,2207.6,2206.9,0.7508]
[1746748540007,4.5310376,2207.0,2206.9,0.7508]
[1746748540303,4.53124291,2206.9,2206.8,0.56641062]
[1746748540509,5.43747096,2206.9,2206.8,0.56641062]
[1746748541495,9.17887096,2206.9,2206.8,0.56641062]
[1746748541666,4.53349652,2205.9,2205.5,4.6624]
[1746748541866,4.53209915,2206.5,2205.6,0.40938645]
[1746748541867,4.53268062,2206.2,2205.6,0.40938645]
[1746748542206,4.53370811,2205.7,2205.6,0.40938645]
[1746748542718,4.53313071,2206.0,2205.6,0.40938645]
[1746748543001,0.82939369,2206.1,2205.6,0.45472022]
[1746748543206,4.53370811,2205.7,2205.6,0.40938645]
[1746748543380,0.90672507,2205.7,2205.6,0.40938645]
[1746748543580,0.82939369,2206.1,2205.6,0.45472519]
[1746748543779,4.53370811,2205.7,2205.6,0.40938645]
[1746748544091,4.53340369,2205.9,2205.6,0.40938645]
[1746748544409,4.53313112,2206.0,2205.3,4.67617538]
[1746748544708,4.53351127,2205.8,2205.4,0.18705869]
[1746748544871,4.53288608,2206.1,2205.4,0.14172772]
[1746748545209,0.81027424,2206.0,2205.4,0.14172772]
[1746748545408,4.53411924,2205.5,2205.4,0.14172772]
[1746748545719,4.53310595,2206.0,2205.3,0.41087713]
[1746748545874,4.53432483,2205.4,2205.3,0.41087713]
[1746748546179,3.56985628,2206.2,2205.3,0.41087713]
[1746748546505,4.53376594,2205.7,2205.4,0.04534328]
[1746748547475,4.53393421,2205.6,2205.4,0.04534328]
[1746748547671,4.53320619,2206.0,2205.5,4.5341135]
[1746748547993,0.1914,2206.3,2205.3,8.84961709]
[1746748547994,4.53366628,2205.8,2205.3,8.80439715]
[1746748548196,4.53338104,2205.9,2205.4,4.53432296]
[1746748548509,4.53380265,2205.7,2205.5,0.14173152]
[1746748548720,4.53366142,2205.8,2205.5,0.14173152]
[1746748549021,4.53396595,2205.6,2205.4,0.14173152]
[1746748549189,4.53309156,2206.0,2205.4,0.14173152]
[1746748549378,4.53361039,2205.8,2205.4,0.18706809]
[1746748549580,4.53360624,2205.8,2205.4,0.14173152]
[1746748549894,4.53360624,2205.8,2205.3,4.00073152]
[1746748550105,0.66378691,2206.3,2205.4,0.04533678]
[1746748550306,4.5330394,2206.1,2205.5,4.53411924]
[1746748550533,4.53330149,2205.9,2205.4,4.53424046]
[1746748550730,4.53314029,2206.0,2205.3,8.39342652]
[1746748550910,0.45331403,2205.9,2205.4,4.67603434]
[1746748551093,0.66378691,2206.3,2205.5,4.57934358]
[1746748551298,4.53279909,2206.2,2205.6,0.7516]
[1746748551530,4.53279909,2206.2,2205.7,3.91033167]
[1746748551822,4.53279909,2206.2,2205.7,8.44400681]
[1746748553028,4.53273821,2206.2,2205.7,8.44393456]
[1746748553235,5.48651048,2206.2,2205.7,8.44393456]
[1746748554035,4.53273821,2206.2,2205.7,8.44393456]
[1746748554234,4.53251347,2206.3,2205.8,4.5333493]
[1746748554405,4.5326845,2206.2,2205.8,0.14170481]
[1746748554991,4.5326845,2206.2,2205.7,8.443901]
[1746748555530,4.5326845,2206.2,2205.8,4.53346332]
[1746748555844,4.4326845,2206.2,2205.8,4.53346332]
[1746748556017,3.56985628,2206.7,2206.3,4.53246877]
[1746748556018,4.53172221,2206.7,2206.3,4.53246877]
[1746748556217,5.43756478,2206.9,2205.9,3.88533178]
[1746748556218,1.09762805,2206.9,2205.9,3.88533178]
[1746748556400,4.53173361,2206.7,2206.2,4.53259173]
[1746748556590,5.54782394,2206.7,2206.2,4.53259173]
[1746748557027,4.53187985,2206.6,2206.2,4.53259173]
[1746748557528,4.53187985,2206.6,2206.1,4.57809936]
[1746748557889,4.53187985,2206.6,2206.2,4.53267213]
[1746748558227,4.53288608,2206.1,2206.0,3.00264514]
[1746748559635,1.00796289,2206.5,2206.0,3.00264514]
[1746748559930,4.53254305,2206.3,2206.0,3.00264514]
[1746748560134,4.53276424,2206.2,2206.0,3.00264514]
[1746748560301,5.43941681,2206.1,2206.0,3.00264514]
[1746748560911,4.53329706,2205.9,2205.8,3.00264514]
[1746748561456,5.62902074,2206.9,2206.0,4.53309156]
[1746748561743,4.53154584,2206.8,2206.2,4.53258021]
[1746748561926,4.53238282,2206.4,2206.1,0.14167802]
[1746748562114,4.53195941,2206.6,2206.1,4.53288042]
[1746748562322,4.53195941,2206.6,2206.1,4.53273932]
[1746748563045,4.53195941,2206.6,2206.3,3.00264514]
[1746748563046,4.53226976,2206.4,2206.3,3.00264514]
[1746748564428,4.72366976,2206.4,2206.3,3.00264514]
[1746748565517,5.27366976,2206.4,2206.3,3.00264514]
[1746748565844,4.53370811,2205.7,2205.6,2.95754774]
[1746748566008,5.89376357,2205.7,2205.6,2.95754774]
[1746748566537,9.63516357,2205.7,2205.6,2.95754774]
[1746748566836,4.53514739,2205.0,2204.9,7.11001153]
[1746748567215,4.53503313,2205.1,2204.9,7.11001153]
[1746748567513,5.89394108,2205.7,2204.9,7.11001153]
[1746748567701,4.53432483,2205.4,2204.9,7.15536204]
[1746748568245,4.53405635,2205.6,2205.0,8.32394267]
[1746748568538,4.53334716,2205.9,2205.4,0.8214]
[1746748568737,8.10234117,2206.3,2205.4,0.8214]
[1746748568738,4.5338232,2205.7,2205.4,0.8214]
[1746748568913,4.53373589,2205.7,2205.4,0.8214]
[1746748569114,0.90671896,2205.7,2205.4,0.8214]
[1746748569313,4.43034582,2206.6,2205.5,4.57929808]
[1746748569514,4.53302055,2206.1,2205.5,4.57929808]
[1746748569740,4.53309664,2206.0,2205.5,4.57936448]
[1746748570041,4.53216741,2206.5,2205.9,4.53318716]
[1746748570249,5.39235068,2206.6,2205.7,0.7542]
[1746748570250,4.53286982,2206.2,2205.7,0.7542]
[1746748570448,0.99245181,2206.4,2205.7,5.28777066]
[1746748570747,8.10171524,2206.6,2205.7,0.7542]
[1746748571044,8.10171524,2206.6,2205.2,16.327]
[1746748571045,4.53340497,2205.9,2205.5,3.791]
[1746748571342,4.53291536,2206.1,2205.5,0.04533647]
[1746748571510,0.55,2206.5,2205.5,3.788]
[1746748571708,4.94442753,2206.4,2205.6,0.04533616]
[1746748571932,4.53301853,2206.1,2205.6,0.04533616]
[1746748572135,4.53247518,2206.3,2205.6,0.04533616]
[1746748572366,4.53144825,2206.8,2206.0,5.33457232]
[1746748572534,4.53196468,2206.6,2206.1,3.83532319]
[1746748572744,3.84,2207.4,2206.3,4.53234805]
[1746748572906,4.5293472,2207.9,2206.1,3.83532319]
[1746748572907,8.09920348,2207.9,2206.4,0.84681631]
[1746748573106,8.09920348,2207.9,2207.0,4.53103472]
[1746748573107,4.5300629,2207.5,2207.0,4.53103472]
[1746748573303,4.53076722,2207.2,2207.0,3.794]
[1746748573509,4.53059309,2207.3,2207.0,3.794]
[1746748573716,4.9836524,2207.3,2207.0,3.794]
[1746748574006,4.53064818,2207.2,2207.0,3.794]
[1746748574207,4.53083231,2207.1,2207.0,3.794]
[1746748574408,4.53136535,2206.9,2206.6,0.8153]
[1746748574639,4.53138539,2206.9,2206.6,0.8153]
[1746748574942,0.45313854,2206.9,2206.5,3.79]
[1746748575117,3.56985628,2207.2,2206.3,0.8118]
[1746748575317,4.53144825,2206.8,2206.0,0.8118]
[1746748575532,4.53144825,2206.8,2206.0,0.85712967]
[1746748575836,4.53341911,2205.9,2205.7,0.41084941]
[1746748576043,4.5330215,2206.1,2205.7,4.19784941]
[1746748576205,4.53278159,2206.2,2205.8,0.04533568]
[1746748576404,4.53278159,2206.2,2205.6,4.93236712]
[1746748576405,0.45327816,2206.1,2205.6,0.761]
[1746748576605,4.53319317,2206.0,2205.6,4.55]
[1746748576912,4.98627122,2206.1,2205.6,9.08391012]
[1746748577131,0.45327816,2206.1,2205.6,4.55]
[1746748577443,4.53164969,2206.8,2206.1,4.53268529]
[1746748577649,4.53140541,2206.9,2206.2,4.5707]
[1746748577806,4.53112654,2207.0,2206.4,4.53226077]
[1746748578010,0.45305931,2207.3,2206.5,4.57717767]
[1746748578234,4.53074806,2207.2,2206.7,4.53161345]
[1746748578432,8.9193884,2207.9,2206.8,4.60361203]
[1746748578433,8.36920053,2207.9,2206.8,4.60361203]
[1746748578648,4.52980612,2207.6,2206.6,3.794]
[1746748578846,4.53077543,2207.2,2206.6,3.794]
[1746748579032,4.5305405,2207.3,2206.8,4.53142497]
[1746748579234,0.45305405,2207.3,2206.9,4.53110394]
[1746748579413,4.52957998,2207.8,2207.2,4.53047999]
[1746748579744,4.52993543,2207.6,2207.1,0.04530239]
[1746748580050,4.52971413,2207.7,2207.2,8.32361341]
[1746748580211,4.52857531,2208.2,2207.2,3.793]
[1746748580541,4.52939577,2207.8,2207.2,3.793]
[1746748580745,0.90586288,2207.7,2207.2,3.793]
[1746748580946,4.5301285,2207.5,2207.2,3.793]
[1746748581111,5.43549512,2207.7,2207.2,8.36874513]
[1746748581314,5.4354702,2207.7,2207.3,4.53033719]
[1746748581513,5.4354702,2207.7,2207.5,4.53000503]
[1746748581514,0.90586288,2207.7,2207.5,4.53000503]
[1746748581722,4.52960505,2207.7,2207.4,0.04530095]
[1746748582046,4.52993299,2207.6,2207.2,3.793]
[1746748582365,4.53004557,2207.5,2207.0,0.8206]
[1746748582532,4.53051839,2207.3,2207.0,0.8206]
[1746748582734,4.53051839,2207.3,2207.1,3.788]
[1746748582735,0.45305184,2207.2,2207.1,3.788]
[1746748582927,3.56985628,2208.0,2207.1,3.788]
[1746748583125,4.53083231,2207.1,2206.7,0.8109]
[1746748583328,4.53144825,2206.8,2206.7,0.8109]
[1746748583523,4.5312394,2207.0,2206.7,0.8109]
[1746748584049,4.53084455,2207.1,2206.4,3.788]
[1746748584050,4.53155924,2206.8,2206.4,4.5457]
[1746748584243,4.53174362,2206.7,2206.4,4.5457]
[1746748584443,0.45315592,2206.8,2206.4,9.07786971]
[1746748584757,0.45315592,2206.8,2206.4,4.5457]
[1746748585053,4.53156204,2206.8,2206.4,4.5457]
[1746748585261,4.53133982,2206.9,2206.4,4.5457]
[1746748585418,0.55,2207.5,2206.5,4.57720362]
[1746748585419,4.53106882,2207.0,2206.5,4.57720362]
[1746748585619,4.53104954,2207.0,2206.6,4.53177812]
[1746748585820,4.53104954,2207.0,2206.7,3.767]
[1746748586020,4.5293564,2207.9,2206.7,3.767]
[1746748586255,4.53036249,2207.4,2206.9,5.28337898]
[1746748586434,4.52965063,2207.7,2206.9,0.7522]
[1746748586635,4.53052095,2207.3,2206.9,0.7522]
[1746748587154,4.52989602,2207.6,2207.1,4.53076893]
[1746748587378,5.43584358,2207.6,2207.3,0.8086]
[1746748587658,4.52851582,2208.3,2207.8,4.52927221]
[1746748587866,4.52755014,2208.7,2207.6,4.52967963]
[1746748587867,4.52832826,2208.4,2207.9,0.8086]
[1746748588163,4.98127979,2208.3,2207.9,0.8086]
[1746748588339,4.5289855,2208.0,2207.9,0.8086]
[1746748588660,0.45283283,2208.3,2207.9,0.8086]
[1746748589166,4.98121087,2208.3,2208.0,3.77]
[1746748589349,0.45283283,2208.3,2208.0,3.77]
[1746748589546,4.52787478,2208.6,2208.4,0.8086]
[1746748589872,4.53218968,2208.9,2208.4,0.8086]
[1746748590028,0.005,2208.9,2208.5,4.52786415]
[1746748590360,0.005,2208.9,2208.4,0.8086]
[1746748590361,4.52734516,2208.8,2208.4,0.8086]
[1746748590565,0.45323452,2208.8,2208.5,3.773]
[1746748590762,4.98061607,2208.8,2208.5,3.773]
[1746748591073,4.52796015,2208.5,2208.2,3.772]
[1746748591291,0.08877698,2208.4,2208.0,0.8117]
[1746748591452,4.52852249,2208.3,2208.2,3.774]
[1746748591651,1.00237384,2208.3,2208.0,0.8117]
[1746748591979,4.52878039,2208.1,2208.0,4.5857]
[1746748592482,4.5289855,2208.0,2207.9,3.77]
[1746748592842,4.52871118,2208.2,2207.9,3.77]
[1746748593058,0.08755608,2208.1,2207.9,3.81528967]
[1746748593234,5.44297494,2208.3,2207.9,3.77]
[1746748593435,0.08771238,2208.2,2207.9,3.77]
[1746748593667,3.45323452,2208.8,2207.9,3.77]
[1746748593867,4.52870925,2208.2,2207.9,3.77]
[1746748594274,4.52835102,2208.4,2207.9,3.77]
[1746748594275,0.08755608,2208.1,2207.9,3.77]
[1746748594458,4.52833664,2208.4,2208.0,0.04528946]
[1746748594659,0.54070233,2208.3,2207.9,8.2990592]
[1746748594877,0.08786867,2208.3,2207.9,8.2990592]
[1746748595377,4.61627286,2208.3,2208.0,0.04528251]
[1746748595553,0.08786867,2208.3,2208.0,0.04528251]
[1746748595753,4.52878039,2208.1,2208.0,0.04528251]
[1746748595969,4.52872104,2208.2,2207.8,20.095]
[1746748596168,5.07763215,2208.1,2208.0,3.76]
[1746748596677,4.5289855,2208.0,2207.9,3.755]
[1746748596880,4.99055034,2208.1,2207.9,3.755]
[1746748597180,4.5289855,2208.0,2207.9,3.755]
[1746748597778,4.52919063,2207.9,2207.7,0.8055]
[1746748597941,4.53000956,2207.6,2207.4,8.35159501]
[1746748598143,5.48127141,2207.9,2207.4,8.63969826]
[1746748598339,4.52951106,2207.8,2207.5,0.04529135]
[1746748598541,4.52996024,2207.6,2207.4,4.89069826]